fUSD/lending_fUSD_20250308
["ID","MTS","AMOUNT","RATE_DAILY","PERIOD"]
[355645583,1741426249213,-538.45,8.219e-05,2]
[355645584,1741426249223,-532.41,8.219e-05,2]
[355645585,1741426249232,-500.0,8.219e-05,2]
[355645586,1741426249242,-500.0,8.219e-05,2]
[355645587,1741426249252,-1308.98,8.219e-05,2]
[355645588,1741426249262,-500.0,8.219e-05,2]
[355645589,1741426249271,-500.0,8.219e-05,2]
[355645590,1741426249280,-1383.65,8.219e-05,2]
[355645591,1741426249289,-386.74406926,8.219e-05,2]
[355645596,1741426369767,729.26,7.725e-05,2]
[355645597,1741426371230,9960.75,7.725e-05,2]
[355645598,1741426394667,168.24,7.936e-05,2]
[355645599,1741426448258,300.0,7.9e-05,2]
[355645600,1741426450424,700.0,8e-05,2]
[355645601,1741426539481,-438.33,8.119e-05,2]
[355645602,1741426570631,1406.35,7.612e-05,2]
[355645603,1741426579161,1852.42,7.612e-05,2]
[355645604,1741426610481,8032.79,7.597e-05,2]
[355645606,1741426981349,209.36,7.519e-05,2]
[355645607,1741427016923,-150.0,8.118e-05,2]
[355645608,1741427016951,-300.0,8.118e-05,2]
[355645609,1741427016977,-550.0,8.118e-05,2]
[355645610,1741427017004,-2048.8668,8.119e-05,2]
[355645611,1741427017031,-313.5887,8.119e-05,2]
[355645612,1741427017058,-267.4352,8.119e-05,2]
[355645613,1741427017084,-897.1093,8.119e-05,2]
[355645614,1741427033320,176.23,7.55e-05,2]
[355645615,1741427108096,236.02,8.081e-05,2]
[355645616,1741427136311,1000.0,7.85e-05,2]
[355645617,1741427144708,1000.0,7.908e-05,2]
[355645626,1741427196893,1000.0,7.944e-05,2]
[355645627,1741427199961,150.0,8.039e-05,2]
[355645628,1741427200017,150.0,7.971e-05,2]
[355645629,1741427200071,150.0,8.075e-05,2]
[355645630,1741427200207,150.0,7.907e-05,2]
[355645631,1741427200269,150.0,7.999e-05,2]
[355645632,1741427200322,150.0,7.916e-05,2]
[355645633,1741427200375,150.0,7.924e-05,2]
[355645634,1741427204379,1000.0,7.996e-05,2]
[355645638,1741427238079,3500.0,7.9e-05,2]
[355645639,1741427240276,7000.0,8e-05,2]
[355645654,1741427266309,1004.57026636,8.037e-05,2]
[355645663,1741427323467,153.58,7.531e-05,2]
[355645664,1741427323683,153.58,7.757e-05,2]
[355645665,1741427324059,153.58,7.983e-05,2]
[355645666,1741427324432,995.42973364,8.059e-05,2]
[355645668,1741427384200,774.75221038,8.071e-05,2]
[355645671,1741427431507,-150.0,8.082e-05,2]
[355645672,1741427431517,-150.0,8.091e-05,2]
[355645673,1741427431526,-550.0,8.1e-05,2]
[355645674,1741427431536,-300.0,8.118e-05,2]
[355645675,1741427431545,-359.878,8.119e-05,2]
[355645676,1741427431555,-1035.4218,8.119e-05,2]
[355645677,1741427431564,-5738.9957,8.119e-05,2]
[355645678,1741427431573,-1000.0,8.119e-05,2]
[355645679,1741427431583,-1393.25325767,8.119e-05,2]
[355645680,1741427431619,-366.48101014,8.119e-05,2]
[355645681,1741427431716,-420.7394915,8.119e-05,2]
[355645682,1741427431728,-449.32685517,8.119e-05,2]
[355645683,1741427431740,-299.99,8.119e-05,2]
[355645684,1741427431770,-310.36,8.119e-05,2]
[355645685,1741427431781,-557.9985784,8.119e-05,2]
[355645686,1741427431817,-94.57960712,8.119e-05,2]
[355645687,1741427431827,-1000.0,8.17e-05,2]
[355645688,1741427431836,-502.90620171,8.193e-05,2]
[355645689,1741427431846,-500.0,8.193e-05,2]
[355645690,1741427431855,-155.29374886,8.193e-05,2]
[355645691,1741427431865,-152.29592798,8.193e-05,2]
[355645692,1741427431874,-500.62197939,8.193e-05,2]
[355645693,1741427431883,-160.3002564,8.193e-05,2]
[355645694,1741427431892,-8157.7180976,8.213e-05,2]
[355645695,1741427431902,-3279.5384982,8.213e-05,2]
[355645696,1741427431912,-404.17697157,8.218e-05,2]
[355645697,1741427431922,-493.52708199,8.218e-05,2]
[355645698,1741427431932,-150.0,8.218e-05,2]
[355645699,1741427431941,-341.468925,8.219e-05,2]
[355645700,1741427431950,-628.609791,8.219e-05,2]
[355645701,1741427431960,-634.64,8.219e-05,2]
[355645702,1741427431969,-494.12467065,8.219e-05,2]
[355645703,1741427431978,-740.38,8.219e-05,2]
[355645704,1741427431988,-500.0,8.219e-05,2]
[355645705,1741427431997,-703.37,8.219e-05,2]
[355645706,1741427432007,-618.03,8.219e-05,2]
[355645707,1741427432016,-500.0,8.219e-05,2]
[355645708,1741427432029,-170.711998,8.219e-05,2]
[355645709,1741427432039,-500.0,8.219e-05,2]
[355645710,1741427432048,-557.36,8.219e-05,2]
[355645711,1741427432058,-500.0,8.219e-05,2]
[355645712,1741427432069,-500.0,8.219e-05,2]
[355645713,1741427432078,-500.0,8.219e-05,2]
[355645714,1741427432087,-500.0,8.219e-05,2]
[355645715,1741427432097,-798.06,8.219e-05,2]
[355645716,1741427432107,-574.94,8.219e-05,2]
[355645717,1741427432117,-154.123285,8.219e-05,2]
[355645718,1741427432127,-533.62,8.219e-05,2]
[355645719,1741427432136,-500.0,8.219e-05,2]
[355645720,1741427432145,-757.14,8.219e-05,2]
[355645721,1741427432154,-500.0,8.219e-05,2]
[355645722,1741427432163,-648.4,8.219e-05,2]
[355645723,1741427432172,-174.285,8.219e-05,2]
[355645724,1741427432182,-2078.106,8.219e-05,2]
[355645725,1741427432192,-500.0,8.219e-05,2]
[355645726,1741427432201,-516.01,8.219e-05,2]
[355645727,1741427432211,-500.0,8.219e-05,2]
[355645728,1741427432220,-500.0,8.219e-05,2]
[355645729,1741427432231,-579.04,8.219e-05,2]
[355645730,1741427432242,-500.0,8.219e-05,2]
[355645731,1741427432252,-500.0,8.219e-05,2]
[355645732,1741427432262,-500.0,8.219e-05,2]
[355645733,1741427432273,-500.0,8.219e-05,2]
[355645734,1741427432282,-500.0,8.219e-05,2]
[355645735,1741427432292,-500.0,8.219e-05,2]
[355645736,1741427432303,-1164.49,8.219e-05,2]
[355645737,1741427432312,-779.58,8.219e-05,2]
[355645738,1741427432322,-677.6,8.219e-05,2]
[355645739,1741427432332,-500.0,8.219e-05,2]
[355645740,1741427432342,-956.11,8.219e-05,2]
[355645741,1741427432351,-865.1,8.219e-05,2]
[355645742,1741427432361,-500.0,8.219e-05,2]
[355645743,1741427432371,-1261.18,8.219e-05,2]
[355645744,1741427432380,-566.14,8.219e-05,2]
[355645745,1741427432390,-1102.32,8.219e-05,2]
[355645746,1741427432399,-500.0,8.219e-05,2]
[355645747,1741427432409,-1026.09,8.219e-05,2]
[355645748,1741427432419,-597.8,8.219e-05,2]
[355645749,1741427432428,-500.0,8.219e-05,2]
[355645750,1741427432438,-1689.44,8.219e-05,2]
[355645751,1741427432447,-790.35,8.219e-05,2]
[355645752,1741427432457,-500.0,8.219e-05,2]
[355645753,1741427432466,-685.64,8.219e-05,2]
[355645754,1741427432475,-1977.0,8.219e-05,2]
[355645755,1741427432485,-655.44,8.219e-05,2]
[355645756,1741427432494,-500.0,8.219e-05,2]
[355645757,1741427432503,-860.59,8.219e-05,2]
[355645758,1741427432512,-500.0,8.219e-05,2]
[355645759,1741427432522,-500.0,8.219e-05,2]
[355645760,1741427432531,-838.61,8.219e-05,2]
[355645761,1741427432541,-676.47,8.219e-05,2]
[355645762,1741427432551,-1220.51,8.219e-05,2]
[355645763,1741427432560,-692.57,8.219e-05,2]
[355645764,1741427432569,-500.0,8.219e-05,2]
[355645765,1741427432579,-947.36,8.219e-05,2]
[355645766,1741427432589,-500.0,8.219e-05,2]
[355645767,1741427432598,-743.68,8.219e-05,2]
[355645768,1741427432608,-700.55,8.219e-05,2]
[355645769,1741427432617,-632.33,8.219e-05,2]
[355645770,1741427432627,-1456.8,8.219e-05,2]
[355645771,1741427432637,-500.0,8.219e-05,2]
[355645772,1741427432646,-542.41,8.219e-05,2]
[355645773,1741427432656,-1117.87,8.219e-05,2]
[355645774,1741427432666,-500.0,8.219e-05,2]
[355645775,1741427432675,-625.64,8.219e-05,2]
[355645776,1741427432686,-500.0,8.219e-05,2]
[355645777,1741427432696,-500.0,8.219e-05,2]
[355645778,1741427432706,-899.87,8.219e-05,2]
[355645779,1741427432715,-570.37816878,8.219e-05,2]
[355645780,1741427432725,-652.8,8.219e-05,2]
[355645781,1741427432735,-500.0,8.219e-05,2]
[355645782,1741427432744,-1028.42,8.219e-05,2]
[355645783,1741427432754,-500.0,8.219e-05,2]
[355645784,1741427432765,-732.09,8.219e-05,2]
[355645785,1741427432775,-500.0,8.219e-05,2]
[355645786,1741427432784,-761.33,8.219e-05,2]
[355645787,1741427432793,-709.52,8.219e-05,2]
[355645788,1741427432802,-500.0,8.219e-05,2]
[355645789,1741427432811,-500.0,8.219e-05,2]
[355645790,1741427432821,-2144.45,8.219e-05,2]
[355645791,1741427432830,-500.0,8.219e-05,2]
[355645792,1741427432840,-1119.57,8.219e-05,2]
[355645793,1741427432849,-500.0,8.219e-05,2]
[355645794,1741427432859,-709.28,8.219e-05,2]
[355645795,1741427432868,-783.33,8.219e-05,2]
[355645796,1741427432878,-594.86,8.219e-05,2]
[355645797,1741427432887,-500.0,8.219e-05,2]
[355645798,1741427432897,-500.0,8.219e-05,2]
[355645799,1741427432907,-619.84,8.219e-05,2]
[355645800,1741427432917,-947.35,8.219e-05,2]
[355645801,1741427432926,-500.0,8.219e-05,2]
[355645802,1741427432935,-586.22,8.219e-05,2]
[355645803,1741427432945,-500.0,8.219e-05,2]
[355645804,1741427432954,-659.74,8.219e-05,2]
[355645805,1741427432963,-500.0,8.219e-05,2]
[355645806,1741427432972,-754.39,8.219e-05,2]
[355645807,1741427432982,-592.41,8.219e-05,2]
[355645808,1741427432991,-500.0,8.219e-05,2]
[355645809,1741427433000,-580.84,8.219e-05,2]
[355645810,1741427433010,-500.0,8.219e-05,2]
[355645811,1741427433021,-994.14,8.219e-05,2]
[355645812,1741427433031,-748.99,8.219e-05,2]
[355645813,1741427433041,-774.31,8.219e-05,2]
[355645814,1741427433050,-500.0,8.219e-05,2]
[355645815,1741427433060,-500.0,8.219e-05,2]
[355645816,1741427433071,-660.6,8.219e-05,2]
[355645817,1741427433080,-1005.16,8.219e-05,2]
[355645818,1741427433090,-1374.98,8.219e-05,2]
[355645819,1741427433101,-505.77,8.219e-05,2]
[355645820,1741427433110,-597.29,8.219e-05,2]
[355645821,1741427433120,-708.02,8.219e-05,2]
[355645822,1741427433129,-529.63,8.219e-05,2]
[355645823,1741427433139,-836.15,8.219e-05,2]
[355645824,1741427433148,-500.0,8.219e-05,2]
[355645825,1741427433159,-500.0,8.219e-05,2]
[355645826,1741427433169,-643.96,8.219e-05,2]
[355645827,1741427433181,-1360.46,8.219e-05,2]
[355645828,1741427433191,-500.0,8.219e-05,2]
[355645829,1741427433203,-500.0,8.219e-05,2]
[355645830,1741427433212,-921.98,8.219e-05,2]
[355645831,1741427433223,-500.0,8.219e-05,2]
[355645832,1741427433233,-500.0,8.219e-05,2]
[355645833,1741427433244,-852.87,8.219e-05,2]
[355645834,1741427433253,-763.2,8.219e-05,2]
[355645835,1741427433263,-959.72,8.219e-05,2]
[355645836,1741427433274,-500.0,8.219e-05,2]
[355645837,1741427433285,-991.68,8.219e-05,2]
[355645838,1741427433295,-949.02,8.219e-05,2]
[355645839,1741427433305,-1211.64,8.219e-05,2]
[355645840,1741427433315,-573.0,8.219e-05,2]
[355645841,1741427433324,-533.89,8.219e-05,2]
[355645842,1741427433335,-500.0,8.219e-05,2]
[355645843,1741427433347,-500.0,8.219e-05,2]
[355645844,1741427433356,-1037.53,8.219e-05,2]
[355645845,1741427433366,-500.0,8.219e-05,2]
[355645846,1741427433376,-548.33,8.219e-05,2]
[355645847,1741427433386,-500.0,8.219e-05,2]
[355645848,1741427433396,-155.21463,8.219e-05,2]
[355645849,1741427433406,-500.0,8.219e-05,2]
[355645850,1741427433421,-608.9,8.219e-05,2]
[355645851,1741427433431,-500.0,8.219e-05,2]
[355645852,1741427433441,-441.65246287,8.219e-05,2]
[355645853,1741427433451,-1320.4,8.219e-05,2]
[355645854,1741427433461,-776.95,8.219e-05,2]
[355645855,1741427433471,-500.0,8.219e-05,2]
[355645856,1741427433482,-500.0,8.219e-05,2]
[355645857,1741427433492,-604.97,8.219e-05,2]
[355645858,1741427433502,-897.09,8.219e-05,2]
[355645859,1741427433512,-500.0,8.219e-05,2]
[355645860,1741427433522,-670.66,8.219e-05,2]
[355645861,1741427433531,-544.84,8.219e-05,2]
[355645862,1741427433541,-500.0,8.219e-05,2]
[355645863,1741427433550,-1325.99,8.219e-05,2]
[355645864,1741427433561,-500.0,8.219e-05,2]
[355645865,1741427433570,-500.0,8.219e-05,2]
[355645866,1741427433580,-500.0,8.219e-05,2]
[355645867,1741427433590,-500.0,8.219e-05,2]
[355645868,1741427433600,-500.0,8.219e-05,2]
[355645869,1741427433610,-724.56,8.219e-05,2]
[355645870,1741427433620,-500.0,8.219e-05,2]
[355645871,1741427433629,-500.0,8.219e-05,2]
[355645872,1741427433639,-894.28,8.219e-05,2]
[355645873,1741427433649,-1359.25,8.219e-05,2]
[355645874,1741427433661,-500.0,8.219e-05,2]
[355645875,1741427433670,-1115.89,8.219e-05,2]
[355645876,1741427433680,-500.0,8.219e-05,2]
[355645877,1741427433690,-593.86,8.219e-05,2]
[355645878,1741427433699,-595.91,8.219e-05,2]
[355645879,1741427433709,-531.06,8.219e-05,2]
[355645880,1741427433719,-1394.58,8.219e-05,2]
[355645881,1741427433729,-1288.48,8.219e-05,2]
[355645882,1741427433739,-500.0,8.219e-05,2]
[355645883,1741427433748,-925.23,8.219e-05,2]
[355645884,1741427433758,-680.76,8.219e-05,2]
[355645885,1741427433768,-713.05,8.219e-05,2]
[355645886,1741427433777,-888.11,8.219e-05,2]
[355645887,1741427433787,-500.0,8.219e-05,2]
[355645888,1741427433797,-1289.12,8.219e-05,2]
[355645889,1741427433806,-43.88986885,8.219e-05,2]
[355645890,1741427433824,-456.11013115,8.219e-05,2]
[355645891,1741427433834,-500.0,8.219e-05,2]
[355645892,1741427433843,-500.0,8.219e-05,2]
[355645893,1741427433853,-1378.78,8.219e-05,2]
[355645894,1741427433863,-500.0,8.219e-05,2]
[355645895,1741427433872,-500.0,8.219e-05,2]
[355645896,1741427433882,-542.23,8.219e-05,2]
[355645897,1741427433892,-849.95,8.219e-05,2]
[355645898,1741427433901,-500.0,8.219e-05,2]
[355645899,1741427433914,-500.0,8.219e-05,2]
[355645900,1741427433924,-500.0,8.219e-05,2]
[355645901,1741427433934,-500.0,8.219e-05,2]
[355645902,1741427433944,-500.0,8.219e-05,2]
[355645903,1741427433955,-500.0,8.219e-05,2]
[355645904,1741427433964,-500.0,8.219e-05,2]
[355645905,1741427433974,-1088.09,8.219e-05,2]
[355645906,1741427433984,-1481.79,8.219e-05,2]
[355645907,1741427433993,-500.0,8.219e-05,2]
[355645908,1741427434003,-592.56,8.219e-05,2]
[355645909,1741427434013,-1241.75,8.219e-05,2]
[355645910,1741427434025,-521.78,8.219e-05,2]
[355645911,1741427434035,-500.0,8.219e-05,2]
[355645912,1741427434045,-1259.79,8.219e-05,2]
[355645913,1741427434054,-500.0,8.219e-05,2]
[355645914,1741427434066,-2310.91,8.219e-05,2]
[355645915,1741427434288,-1221.09,8.219e-05,2]
[355645916,1741427434300,-500.0,8.219e-05,2]
[355645917,1741427434311,-500.0,8.219e-05,2]
[355645918,1741427434320,-2465.62,8.219e-05,2]
[355645919,1741427434329,-4.59055885,8.219e-05,2]
[355645920,1741427434341,-547.20265525,8.219e-05,2]
[355645921,1741427434353,-1685.12419043,8.219e-05,2]
[355645922,1741427434753,-837.24311816,8.219e-05,2]
[355645925,1741427437465,-281.67050018,8.219e-05,2]
[355645932,1741427439756,-18.71537061,8.219e-05,2]
[355645933,1741427439766,-293.93629405,8.219e-05,2]
[355645934,1741427439833,-108.34783516,8.219e-05,2]
[355645935,1741427439842,-194.47003489,8.219e-05,2]
[355645936,1741427439923,-305.52996511,8.219e-05,2]
[355645937,1741427439932,-9.83447157,8.219e-05,2]
[355645938,1741427440001,-821.11552843,8.219e-05,2]
[355645939,1741427440011,-500.0,8.219e-05,2]
[355645940,1741427440025,-1687.07,8.219e-05,2]
[355645941,1741427440034,-2245.92,8.219e-05,2]
[355645942,1741427440043,-532.89227805,8.219e-05,2]
[355645943,1741427440051,-520.31,8.219e-05,2]
[355645944,1741427440060,-500.0,8.219e-05,2]
[355645945,1741427440070,-1279.38,8.219e-05,2]
[355645946,1741427440078,-820.72,8.219e-05,2]
[355645947,1741427440087,-902.93,8.219e-05,2]
[355645948,1741427440096,-2127.83,8.219e-05,2]
[355645949,1741427440106,-1330.03,8.219e-05,2]
[355645950,1741427440115,-624.48,8.219e-05,2]
[355645951,1741427440124,-2995.73,8.219e-05,2]
[355645952,1741427440132,-500.0,8.219e-05,2]
[355645953,1741427440141,-500.0,8.219e-05,2]
[355645954,1741427440150,-3055.68,8.219e-05,2]
[355645955,1741427440159,-6199.01,8.219e-05,2]
[355645956,1741427440168,-500.0,8.219e-05,2]
[355645957,1741427440178,-2104.36,8.219e-05,2]
[355645958,1741427440187,-2156.99,8.219e-05,2]
[355645959,1741427440196,-561.4,8.219e-05,2]
[355645960,1741427440205,-519.90007505,8.219e-05,2]
[355645961,1741427440214,-500.0,8.219e-05,2]
[355645962,1741427440223,-3704.2,8.219e-05,2]
[355645963,1741427440232,-2196.13,8.219e-05,2]
[355645964,1741427440241,-500.0,8.219e-05,2]
[355645965,1741427440250,-1774.01,8.219e-05,2]
[355645966,1741427440259,-609.14,8.219e-05,2]
[355645967,1741427440268,-500.0,8.219e-05,2]
[355645968,1741427440277,-500.0,8.219e-05,2]
[355645969,1741427440286,-1994.01,8.219e-05,2]
[355645970,1741427440295,-825.29,8.219e-05,2]
[355645971,1741427440304,-532.73,8.219e-05,2]
[355645972,1741427440535,-529.81433735,8.219e-05,2]
[355645973,1741427440553,-1972.17,8.219e-05,2]
[355645974,1741427440562,-500.0,8.219e-05,2]
[355645975,1741427440571,-500.0,8.219e-05,2]
[355645976,1741427440580,-500.0,8.219e-05,2]
[355645977,1741427440589,-3976.7,8.219e-05,2]
[355645978,1741427440598,-3050.32,8.219e-05,2]
[355645979,1741427440607,-911.38,8.219e-05,2]
[355645980,1741427440616,-508.54,8.219e-05,2]
[355645981,1741427440625,-500.0,8.219e-05,2]
[355645982,1741427440634,-1055.36,8.219e-05,2]
[355645983,1741427440643,-801.79,8.219e-05,2]
[355645984,1741427440654,-1117.23,8.219e-05,2]
[355645985,1741427440663,-500.0,8.219e-05,2]
[355645986,1741427440672,-500.0,8.219e-05,2]
[355645987,1741427440681,-532.22,8.219e-05,2]
[355645988,1741427440689,-802.12,8.219e-05,2]
[355645989,1741427440698,-2147.93,8.219e-05,2]
[355645990,1741427440707,-606.17,8.219e-05,2]
[355645991,1741427440715,-630.82,8.219e-05,2]
[355645992,1741427440724,-500.0,8.219e-05,2]
[355645993,1741427440733,-3031.89,8.219e-05,2]
[355645994,1741427440742,-513.04,8.219e-05,2]
[355645995,1741427440751,-7362.37472633,8.219e-05,2]
[355645998,1741427442638,-381.25527367,8.219e-05,2]
[355645999,1741427442647,-396.26472633,8.219e-05,2]
[355646190,1741427445664,-1000.0,8.215e-05,2]
[355646191,1741427445676,-1693.24527367,8.219e-05,2]
[355646192,1741427445685,-706.13,8.219e-05,2]
[355646193,1741427445695,-907.63754625,8.219e-05,2]
[355646194,1741427445770,-2698.47245375,8.219e-05,2]
[355646195,1741427445779,-995.02,8.219e-05,2]
[355646196,1741427445788,-500.0,8.219e-05,2]
[355646197,1741427445797,-500.0,8.219e-05,2]
[355646198,1741427445806,-4635.16,8.219e-05,2]
[355646199,1741427445816,-1868.12,8.219e-05,2]
[355646200,1741427445825,-2721.81,8.219e-05,2]
[355646201,1741427445834,-500.0,8.219e-05,2]
[355646202,1741427445844,-726.64,8.219e-05,2]
[355646203,1741427445853,-6782.44,8.219e-05,2]
[355646204,1741427445862,-500.0,8.219e-05,2]
[355646205,1741427445871,-9999.99,8.219e-05,2]
[355646206,1741427445880,-1702.42,8.219e-05,2]
[355646207,1741427445890,-500.0,8.219e-05,2]
[355646208,1741427445899,-1423.83,8.219e-05,2]
[355646209,1741427445908,-500.0,8.219e-05,2]
[355646210,1741427445918,-1095.7,8.219e-05,2]
[355646211,1741427445928,-3849.38,8.219e-05,2]
[355646212,1741427445937,-1604.07,8.219e-05,2]
[355646213,1741427445946,-500.0,8.219e-05,2]
[355646214,1741427445955,-500.0,8.219e-05,2]
[355646215,1741427445964,-932.48,8.219e-05,2]
[355646216,1741427445973,-1430.3,8.219e-05,2]
[355646217,1741427445982,-6635.08,8.219e-05,2]
[355646218,1741427445991,-3124.18,8.219e-05,2]
[355646219,1741427446000,-1523.55,8.219e-05,2]
[355646220,1741427446009,-1785.53,8.219e-05,2]
[355646221,1741427446019,-500.0,8.219e-05,2]
[355646222,1741427446031,-500.0,8.219e-05,2]
[355646223,1741427446041,-2057.01,8.219e-05,2]
[355646224,1741427446050,-500.0,8.219e-05,2]
[355646225,1741427446059,-935.08,8.219e-05,2]
[355646226,1741427446070,-1451.66374093,8.219e-05,2]
[355646227,1741427496413,150.0,7.999e-05,2]
[355646228,1741427496672,154.91361423,8.055e-05,2]
[355646235,1741427500069,150.0,7.99e-05,2]
[355646236,1741427500121,150.0,7.988e-05,2]
[355646237,1741427500221,150.0,7.92e-05,2]
[355646238,1741427500268,150.0,8.014e-05,2]
[355646239,1741427500306,150.0,7.968e-05,2]
[355646240,1741427500339,150.0,8.059e-05,2]
[355646241,1741427500371,150.0,7.976e-05,2]
[355646242,1741427500404,150.0,7.958e-05,2]
[355646243,1741427500507,150.0,7.999e-05,2]
[355646244,1741427500540,150.0,8.023e-05,2]
[355646245,1741427500574,150.0,7.995e-05,2]
[355646246,1741427500622,150.0,8.07e-05,2]
[355646247,1741427500663,150.0,7.984e-05,2]
[355646248,1741427500708,150.0,7.942e-05,2]
[355646249,1741427500790,220.45223127,7.932e-05,2]
[355646250,1741427500821,150.0,7.994e-05,2]
[355646251,1741427500854,150.0,8.051e-05,2]
[355646252,1741427501110,150.0,7.926e-05,2]
[355646253,1741427501147,150.0,8.033e-05,2]
[355646254,1741427501184,150.0,7.925e-05,2]
[355646255,1741427501230,150.0,8.029e-05,2]
[355646256,1741427501287,150.0,7.935e-05,2]
[355646257,1741427504402,680.64485793,7.963e-05,2]
[355646258,1741427528376,150.80459688,8.003e-05,2]
[355646259,1741427564169,1000.0,7.968e-05,2]
[355646260,1741427616166,150.0,7.939e-05,2]
[355646261,1741427616590,1000.0,8.023e-05,2]
[355646262,1741427619959,150.0,8.006e-05,2]
[355646263,1741427620048,150.0,7.978e-05,2]
[355646264,1741427620105,150.0,7.972e-05,2]
[355646265,1741427620152,150.0,8.017e-05,2]
[355646266,1741427620200,150.0,8.07e-05,2]
[355646267,1741427620231,150.0,8.081e-05,2]
[355646269,1741427648456,150.0,8.016e-05,2]
[355646270,1741427676401,1000.0,7.957e-05,2]
[355646271,1741427676459,1000.0,8.023e-05,2]
[355646272,1741427680163,150.0,7.954e-05,2]
[355646273,1741427680248,150.0,8.042e-05,2]
[355646274,1741427680285,150.0,7.921e-05,2]
[355646275,1741427680327,150.0,8.08e-05,2]
[355646276,1741427680467,150.0,8e-05,2]
[355646277,1741427680512,150.0,7.951e-05,2]
[355646278,1741427680543,150.0,8.077e-05,2]
[355646279,1741427680580,150.0,8.032e-05,2]
[355646280,1741427680611,150.0,7.975e-05,2]
[355646281,1741427680643,150.0,7.946e-05,2]
[355646282,1741427680674,150.0,7.929e-05,2]
[355646283,1741427680705,150.0,8.045e-05,2]
[355646284,1741427680752,150.0,8.037e-05,2]
[355646285,1741427680842,150.0,7.984e-05,2]
[355646286,1741427680892,292.91100931,7.981e-05,2]
[355646287,1741427680945,150.0,8.002e-05,2]
[355646288,1741427680986,150.0,7.928e-05,2]
[355646289,1741427681017,150.0,8.05e-05,2]
[355646290,1741427681052,150.0,8.012e-05,2]
[355646291,1741427681339,150.0,7.946e-05,2]
[355646292,1741427681381,150.0,7.982e-05,2]
[355646293,1741427681413,150.0,8.051e-05,2]
[355646294,1741427681457,150.0,7.919e-05,2]
[355646295,1741427681505,150.0,8.063e-05,2]
[355646296,1741427681536,150.0,8.051e-05,2]
[355646297,1741427681616,150.0,7.924e-05,2]
[355646298,1741427681679,150.0,8.015e-05,2]
[355646299,1741427684395,712.08899069,7.977e-05,2]
[355646300,1741428031944,389.98,7.163e-05,2]
[355646301,1741428032247,389.98,8.058e-05,2]
[355646302,1741428156289,150.0,8e-05,2]
[355646303,1741428160134,150.0,7.999e-05,2]
[355646304,1741428160192,150.0,8.026e-05,2]
[355646305,1741428160252,150.0,8.024e-05,2]
[355646306,1741428160294,150.0,8.031e-05,2]
[355646307,1741428160351,150.0,7.955e-05,2]
[355646308,1741428160383,150.0,7.989e-05,2]
[355646309,1741428160502,150.0,8.011e-05,2]
[355646311,1741428284367,912.18355136,8.054e-05,2]
[355646312,1741428287854,150.0,8.069e-05,2]
[355646325,1741428340640,150.0,8.006e-05,2]
[355646326,1741428340688,150.0,8.006e-05,2]
[355646327,1741428340737,150.0,7.936e-05,2]
[355646328,1741428341008,150.0,7.995e-05,2]
[355646338,1741428423850,3000.0,7.9e-05,2]
[355646339,1741428425763,6000.0,8e-05,2]
[355646399,1741428631728,-150.0,8.082e-05,2]
[355646400,1741428631738,-550.0,8.082e-05,2]
[355646401,1741428631748,-150.0,8.083e-05,2]
[355646402,1741428631758,-150.0,8.083e-05,2]
[355646403,1741428631768,-150.0,8.108e-05,2]
[355646404,1741428631778,-1000.0,8.11e-05,2]
[355646405,1741428631787,-150.0,8.114e-05,2]
[355646406,1741428631797,-150.0,8.126e-05,2]
[355646407,1741428631806,-300.0,8.128e-05,2]
[355646408,1741428631816,-150.0,8.129e-05,2]
[355646409,1741428631825,-150.99,8.129e-05,2]
[355646410,1741428631835,-3653.84,8.129e-05,2]
[355646411,1741428631844,-999.99,8.129e-05,2]